Cogmind - Beta 11.1 @@@ ROGUE MODE // 2022.04.22 @ 21:41:14 Player: Mairon Result: Destroyed by Y-54 Guardian with Flak Gun Performance ------------- Evolutions (3) 1500 Regions Visited (9) 1800 Robots Destroyed (39) 195 Value Destroyed (1117) 1117 Prototype IDs (16) 320 Alien Tech Used (0) 0 Bonus (475) 475 TOTAL SCORE: 5407 Bonus ------- High Alert Combat Kills 122 Follower Combat Kills 95 Aligned with FarCom 300 Friendly Fire -42 Cogmind --------- Core Integrity 0/700 Matter 144/300 Energy 60/100 System Corruption 4% Temperature Cool (18) Movement Core (50) Location -7/Lower Caves Parts ------- > --- POWER (1) -------- (None) > --- PROPULSION (3) --- (None) > --- UTILITY (6) ------ (None) > --- WEAPON (3) ------- (None) > --- INVENTORY (5) ---- Light Treads Improved Datajack Peak State ------------ > --- POWER ------------ Improved Deuterium Engine > --- PROPULSION ------- Compact Wheel > --- UTILITY ---------- Medium Storage Unit Experimental Sensor Array Improved Signal Interpreter Target Analyzer Improved Light Armor Plating Improved Light Armor Plating > --- WEAPON ----------- Pulse Rifle Heavy Particle Cannon Heavy Missile Launcher > --- INVENTORY -------- Improved Ion Engine Light Treads Aluminum Leg Aluminum Leg Medium Storage Unit Improved Sensor Array Improved Sensor Array Hacking Suite Light Assault Rifle Improved Datajack [Rating: 38] Favorites ----------- Power Improved Ion Engine Engine Improved Ion Engine Power Core Light Nuclear Core Propulsion Compact Wheel Treads Light Treads Leg Aluminum Leg Wheel Compact Wheel Utility Medium Storage Unit Device Experimental Sensor Array Storage Medium Storage Unit Processor Modified TNC Protection Improved Light Armor Plating Weapon Heavy Particle Cannon Energy Gun Pulse Rifle Energy Cannon Heavy Particle Cannon Ballistic Gun Light Assault Rifle Launcher Rocket Launcher Special Melee Weapon Datajack Build | -11 -10 -10 -9 -9 -9 -8 -8 -7 -7 ------- Run | Scr Mat Min Mat Min Exi Min Mat Fac Low Slots Evolved 6 | . . . 2 . . . 2 2 . Power . | . . . . . . . . . . Propulsion 1 | . . . . . . . . 1 . Utility 4 | . . . 2 . . . 1 1 . Weapon 1 | . . . . . . . 1 . . Parts Attached 68 | 6 1 5 27 2 3 5 5 14 . Power 5 | 1 . 1 1 . . . . 2 . Engine 4 | 1 . . 1 . . . . 2 . Core 1 | . . 1 . . . . . . . Reactor . | . . . . . . . . . . Propulsion 11 | 2 . . 6 . . 1 . 2 . Treads 1 | . . . 1 . . . . . . Leg 8 | 2 . . 4 . . . . 2 . Wheel 2 | . . . 1 . . 1 . . . Hover . | . . . . . . . . . . Flight . | . . . . . . . . . . Utility 21 | 1 1 1 8 2 1 1 2 4 . Device 7 | . . 1 4 1 . . . 1 . Storage 3 | 1 1 . . . . . 1 . . Processor 3 | . . . . . 1 . . 2 . Hackware . | . . . . . . . . . . Protection 8 | . . . 4 1 . 1 1 1 . Artifact . | . . . . . . . . . . Weapon 31 | 2 . 3 12 . 2 3 3 6 . Energy Gun 3 | . . . . . . . 1 2 . Energy Cannon 11 | . . . 7 . 1 2 1 . . Ballistic Gun 6 | 2 . 1 1 . . . . 2 . Ballistic Cannon . | . . . . . . . . . . Launcher 6 | . . 2 2 . . 1 . 1 . Special Weapon . | . . . . . . . . . . Impact Weapon . | . . . . . . . . . . Slashing Weapon . | . . . . . . . . . . Piercing Weapon . | . . . . . . . . . . Special Melee Weapon 5 | . . . 2 . 1 . 1 1 . Unidentified Prototypes 2 | . . . . 1 1 . . . . Parts Lost 14 | . . 1 2 . . 1 . 10 . Power 2 | . . 1 . . . . . 1 . Propulsion 4 | . . . 2 . . . . 2 . Utility 3 | . . . . . . . . 3 . Weapon 5 | . . . . . . 1 . 4 . Highest Loss Streak 8 | . . 1 2 . . 1 . 8 . To Critical Strikes . | . . . . . . . . . . Average Slot Usage (%) 90 | . 85 97 92 100 100 99 89 72 . Engine 8 | . 14 . 5 11 11 11 9 6 . Core 1 | . . 12 5 . . . . . . Treads 2 | . . . 6 11 11 . . . . Leg 2 | . 28 28 8 . . . . . . Wheel 13 | . . . 1 11 11 21 18 6 . Device 17 | . . 12 22 22 22 22 18 6 . Storage 9 | . 14 14 11 11 11 11 9 6 . Processor 5 | . . . . . 7 10 . 8 . Protection 6 | . . . 10 11 3 . 9 13 . Energy Gun 3 | . . . . . . . 8 6 . Energy Cannon 15 | . . . 19 22 15 20 18 7 . Ballistic Gun 2 | . 28 20 . . . . . 4 . Naked Turns 61 | . . . . . . . . 52 9 Heaviest Build 43 | 10 15 21 36 34 34 34 37 43 . Greatest Support 39 | 20 20 20 39 16 16 32 32 32 3 Greatest Overweight (x) 10 | 2 . 1 10 2 2 1 1 2 . Average Overweight (x) . | . . . 1 2 1 . 1 1 . Largest Inventory Capacity 10 | 8 10 10 10 10 10 10 10 10 5 Average Capacity 9 | 7 9 10 10 10 10 10 10 9 5 Most Carried 10 | 2 3 4 10 10 10 10 10 10 2 Average Carried 8 | 1 2 3 9 9 9 9 9 8 2 Final Capacity 10 | 8 10 10 10 10 10 10 10 5 5 Final Carried 10 | 2 3 4 9 10 10 7 10 2 2 Class Distribution -------------------- 64% | Skirmisher 32% | Mutant Dominant Class ---------------- Mutant | -10/Materials Mutant | -10/Mines Mutant | -9/Materials Mutant | -9/Mines Mutant | -9/Exiles Skirmisher | -8/Mines Skirmisher | -8/Materials Skirmisher | -7/Factory Mutant | -7/Lower Caves Resources | -11 -10 -10 -9 -9 -9 -8 -8 -7 -7 ----------- Run | Scr Mat Min Mat Min Exi Min Mat Fac Low Matter Collected 983 | 243 . 79 365 . . 99 53 144 . Remotely . | . . . . . . . . . . Salvage Created 1192 | . . 179 602 . . 24 53 334 . Parts 55 | . . 6 33 . . 2 4 10 . Haulers Intercepted 1 | . . . . . . . . 1 . Recyclers Shooed . | . . . . . . . . . . Parts Field Recycled . | . . . . . . . . . . Retrieved Matter . | . . . . . . . . . . Parts Self-Destructed . | . . . . . . . . . . Prevented . | . . . . . . . . . . Kills | -11 -10 -10 -9 -9 -9 -8 -8 -7 -7 ------- Run | Scr Mat Min Mat Min Exi Min Mat Fac Low Combat Hostiles Destroyed 40 | . . 6 21 . . 4 1 8 . Guns 3 | . . 2 1 . . . . . . Cannons 20 | . . . 12 . . 1 1 6 . AOE 17 | . . 4 8 . . 3 . 2 . Classes Destroyed 9 | . . 1 4 . . . . 4 . Hauler 1 | . . . . . . . . 1 . Recycler 2 | . . . . . . . . 2 . Mechanic 1 | . . . 1 . . . . . . Operator 1 | . . . 1 . . . . . . Swarmer 12 | . . . 8 . . 4 . . . Grunt 17 | . . 6 10 . . . . 1 . Brawler 1 | . . . . . . . . 1 . Sentry 4 | . . . 3 . . . 1 . . Assembled 6 | . . . . . . . . 6 . Best Kill Streak 8 | . . 2 8 . . 4 1 4 . Combat Bots Only 8 | . . 2 8 . . 4 1 3 . Max Kills in Single Turn 3 | . . 1 3 . . 2 1 2 . Gunslinging . | . . . . . . . . . . Exploded 3 | . . 1 3 . . 2 . 1 . Melee . | . . . . . . . . . . Uniques/NPCs Destroyed . | . . . . . . . . . . Combat | -11 -10 -10 -9 -9 -9 -8 -8 -7 -7 -------- Run | Scr Mat Min Mat Min Exi Min Mat Fac Low Damage Taken 2743 | . . 341 743 . . 25 . 1446 188 Core 903 | . . 25 177 . . . . 513 188 Absorbed by Shields . | . . . . . . . . . . Regen/Repaired (Parts) 129 | . . . 129 . . . . . . Core Remaining (%) 86 | 100 . 90 . . . 55 100 . . Volleys Fired 93 | . 3 18 45 . . 3 1 23 . Largest 3 | . 2 2 2 . . 1 2 3 . Hottest 219 | . 40 40 150 . . 75 150 219 . Shots Fired 172 | . 6 28 84 . . 3 2 49 . Gun 44 | . 6 20 2 . . . . 16 . Cannon 105 | . . . 78 . . 1 2 24 . Launcher 23 | . . 8 4 . . 2 . 9 . Special . | . . . . . . . . . . Kinetic 33 | . 6 20 2 . . . . 5 . Thermal 116 | . . . 78 . . 1 2 35 . Explosive 23 | . . 8 4 . . 2 . 9 . Electromagnetic . | . . . . . . . . . . Robot Hit Streak 14 | . 2 6 14 . . 1 2 7 . Robot Miss Streak 7 | . 2 2 7 . . 1 . 6 . Penetration Max . | . . . . . . . . . . Secondary Targets 1 | . . 1 . . . . . . . Max Gunslinging Chain 1 | . . 1 . . . . . . . Shots Hit Robots 111 | . 2 21 51 . 10 1 2 24 . Core Hits 67 | . . 14 27 . . 5 1 20 . Critical Kills 2 | . . 1 1 . . . . . . Critical Parts Destroyed . | . . . . . . . . . . Critical Strikes 2 | . . 1 1 . . . . . . Destroy 2 | . . 1 1 . . . . . . Melee Attacks 16 | . . . 4 . 10 . 1 1 . Impact . | . . . . . . . . . . Slashing . | . . . . . . . . . . Piercing . | . . . . . . . . . . Sneak Attacks 12 | . . . 2 . 8 . 1 1 . Combat Hostiles 1 | . . . . . . . . 1 . Follow-up Attacks . | . . . . . . . . . . Damage Inflicted 4000 | . 15 600 1956 . . 197 25 1207 . Guns 258 | . 15 124 9 . . . . 110 . Cannons 1525 | . . . 1125 . . 25 25 350 . Explosions 2179 | . . 472 795 . . 165 . 747 . Melee . | . . . . . . . . . . Ramming 38 | . . 4 27 . . 7 . . . Kinetic 170 | . 15 124 9 . . . . 22 . Thermal 1896 | . . . 1408 . . 25 25 438 . Explosive 1896 | . . 472 512 . . 165 . 747 . Electromagnetic . | . . . . . . . . . . Impact . | . . . . . . . . . . Slashing . | . . . . . . . . . . Piercing . | . . . . . . . . . . Highest Corruption 4 | . . . . . . . . 4 4 Average Corruption 3 | . . . . . . . . 3 4 Corruption Purged . | . . . . . . . . . . Corruption Blocked . | . . . . . . . . . . Effects 19 | . . . . . . . . 18 1 Message Errors 2 | . . . . . . . . 2 . Matter Fused 6 | . . . . . . . . 6 . Heat Flow Errors 2 | . . . . . . . . 2 . Energy Discharges 2 | . . . . . . . . 1 1 Data Loss (minor) 2 | . . . . . . . . 2 . Data Loss (major) 1 | . . . . . . . . 1 . Misfires 1 | . . . . . . . . 1 . Alerts 1 | . . . . . . . . 1 . Weapon Failures 2 | . . . . . . . . 2 . Overload Shots . | . . . . . . . . . . Overflow Damage 206 | . . 11 53 . . 5 . 137 . Projectiles 25 | . . . 15 . . . . 10 . Explosions 181 | . . 11 38 . . 5 . 127 . Melee . | . . . . . . . . . . Knockbacks . | . . . . . . . . . . Impact . | . . . . . . . . . . Kinetic . | . . . . . . . . . . Secondary . | . . . . . . . . . . Self-Inflicted Damage 164 | . . 38 8 . . 25 . 93 . Shots 5 | . . 1 . . . 1 . 3 . Rammed 7 | . . . 4 . . 2 . 1 . Targets Rammed 9 | . 1 1 4 . . 2 . 1 . Kicked 2 | . 1 1 . . . . . . . Crushed . | . . . . . . . . . . Highest Temperature 731 | . . 65 508 . . 2 39 731 . Average Temperature 183 | . . 36 167 . . 1 20 238 . Received Heat Transfer 1048 | . . 213 183 . . . . 634 18 Effects 19 | . . . 3 . . . . 16 . Shutdowns 5 | . . . 1 . . . . 4 . Energy Bleed 2 | . . . 1 . . . . 1 . Short Circuit 3 | . . . 1 . . . . 2 . Damage (minor) 3 | . . . . . . . . 3 . Damage (major) 5 | . . . . . . . . 5 . Damage (core) 1 | . . . . . . . . 1 . Siege Activations . | . . . . . . . . . . Robots Corrupted . | . . . . . . . . . . Combat Hostiles . | . . . . . . . . . . Parts Fried . | . . . . . . . . . . Impact Corruptions . | . . . . . . . . . . Robots Melted . | . . . . . . . . . . Combat Hostiles . | . . . . . . . . . . Parts Melted 3 | . . . 3 . . . . . . Heat Transferred 2592 | . . . 1815 . . 37 37 703 . Parts Sabotaged . | . . . . . . . . . . Parts Stolen . | . . . . . . . . . . Parts Stripped . | . . . . . . . . . . Power Chain Reactions . | . . . . . . . . . . Missiles Intercepted . | . . . . . . . . . . Alert | -11 -10 -10 -9 -9 -9 -8 -8 -7 -7 ------- Run | Scr Mat Min Mat Min Exi Min Mat Fac Low Peak Influence 765 | . 15 258 765 298 . 92 53 104 . Initial 298 | . . 5 100 298 . . 2 . . Average 88 | . 8 164 537 298 . 7 10 18 . Maximum Alert Level 3 | . . 1 3 1 . . . . . Low Security (%) 85 | 100 100 52 16 . . 100 100 100 . Level 1 6 | . . 48 13 100 . . . . . Level 2 3 | . . . 29 . . . . . . Level 3 4 | . . . 40 . . . . . . Level 4 . | . . . . . . . . . . Level 5 . | . . . . . . . . . . High Security . | . . . . . . . . . . Max Security . | . . . . . . . . . . Squads Dispatched 9 | . 1 . 3 . . . . 5 . Investigation 1 | . . . 1 . . . . . . Extermination 2 | . . . . . . . . 2 . Reinforcement 2 | . 1 . 1 . . . . . . Assault 1 | . . . 1 . . . . . . Garrison 3 | . . . . . . . . 3 . Intercept . | . . . . . . . . . . Searches Triggered . | . . . . . . . . . . Construction Impeded . | . . . . . . . . . . Haulers Reinforced . | . . . . . . . . . . Active Scanning Responses . | . . . . . . . . . . Cargo Convoy Interrupts . | . . . . . . . . . . Stealth | -11 -10 -10 -9 -9 -9 -8 -8 -7 -7 --------- Run | Scr Mat Min Mat Min Exi Min Mat Fac Low Distress Signals 4 | . . . 4 . . . . . . Communications Jammed . | . . . . . . . . . . Distress Signals . | . . . . . . . . . . Times Spotted 65 | . 3 6 31 . . 2 1 17 5 Peak Tracking Total 8 | . 2 2 8 . . 1 1 7 4 Tactical Retreats 5 | . . . 2 . . . . 3 . Traps | -11 -10 -10 -9 -9 -9 -8 -8 -7 -7 ------- Run | Scr Mat Min Mat Min Exi Min Mat Fac Low Traps Triggered 4 | . . . . . . . . 4 . Indirectly . | . . . . . . . . . . Trap Hack Attempts . | . . . . . . . . . . Triggered . | . . . . . . . . . . Disarmed . | . . . . . . . . . . Reprogrammed . | . . . . . . . . . . Reused . | . . . . . . . . . . Traps Extracted . | . . . . . . . . . . Installed . | . . . . . . . . . . Triggered . | . . . . . . . . . . Machines | -11 -10 -10 -9 -9 -9 -8 -8 -7 -7 ---------- Run | Scr Mat Min Mat Min Exi Min Mat Fac Low Machines Disabled 7 | . . . 5 . . . . 2 . Max in Single Turn 1 | . . . 1 . . . . 1 . Machines Sabotaged . | . . . . . . . . . . Garrisons Compromised . | . . . . . . . . . . Overloaded Fab Kills . | . . . . . . . . . . Hacking | -11 -10 -10 -9 -9 -9 -8 -8 -7 -7 --------- Run | Scr Mat Min Mat Min Exi Min Mat Fac Low Machines Accessed 6 | . 1 . 3 . . . 1 1 . Terminals 3 | . 1 . 1 . . . 1 . . Fabricators . | . . . . . . . . . . Repair Stations 2 | . . . 1 . . . . 1 . Recycling Units 1 | . . . 1 . . . . . . Scanalyzers . | . . . . . . . . . . Garrison Access . | . . . . . . . . . . Total Hacks 19 | . 4 . 11 . . . 3 1 . Successful 8 | . . . 6 . . . 1 1 . Failed 11 | . 4 . 5 . . . 2 . . Catastrophic 2 | . 1 . 1 . . . . . . Database Lockouts . | . . . . . . . . . . Manual 1 | . . . . . 1 . . . . Terminals 10 | . 4 . 3 . . . 3 . . Fabricators . | . . . . . . . . . . Repair Stations 7 | . . . 6 . . . . 1 . Recycling Units 2 | . . . 2 . . . . . . Scanalyzers . | . . . . . . . . . . Garrison Access . | . . . . . . . . . . Terminal Hacks 3 | . . . 2 . . . 1 . . Emergency Access Points 1 | . . . 1 . . . . . . Dispatch Records 1 | . . . 1 . . . . . . Zone Layout 1 | . . . . . . . 1 . . Fabricator Hacks . | . . . . . . . . . . Repair Station Hacks 4 | . . . 3 . . . . 1 . Scan Component 1 | . . . 1 . . . . . . Repair 1 | . . . 1 . . . . . . Refit 2 | . . . 1 . . . . 1 . Recycling Unit Hacks 1 | . . . 1 . . . . . . Retrieve Components 1 | . . . 1 . . . . . . Scanalyzer . | . . . . . . . . . . Garrison Access Hacks . | . . . . . . . . . . Unauthorized Hacks . | . . . . . . . . . . Terminals . | . . . . . . . . . . Fabricators . | . . . . . . . . . . Repair Stations . | . . . . . . . . . . Recycling Units . | . . . . . . . . . . Scanalyzers . | . . . . . . . . . . Garrison Access . | . . . . . . . . . . Data Cores Recovered . | . . . . . . . . . . Used . | . . . . . . . . . . Hacking Detections 4 | . 1 . 2 . . . 1 . . Full Trace Events 3 | . 1 . 2 . . . . . . Feedback Events . | . . . . . . . . . . Feedback Blocked . | . . . . . . . . . . Robot Schematics Acquired . | . . . . . . . . . . Robots Built . | . . . . . . . . . . Authchips . | . . . . . . . . . . Time . | . . . . . . . . . . Total Robot Build Rating . | . . . . . . . . . . Part Schematics Acquired . | . . . . . . . . . . Parts Built . | . . . . . . . . . . Authchips . | . . . . . . . . . . Time . | . . . . . . . . . . Total Part Build Rating . | . . . . . . . . . . Parts Repaired 1 | . . . 1 . . . . . . Time 38 | . . . 38 . . . . . . Parts Recycled . | . . . . . . . . . . Recycled Matter . | . . . . . . . . . . Retrieved Matter . | . . . . . . . . . . Retrieved Components 9 | . . . 9 . . . . . . Parts Scanalyzed . | . . . . . . . . . . Part Schematics Acquired . | . . . . . . . . . . Parts Damaged . | . . . . . . . . . . Bothacking | -11 -10 -10 -9 -9 -9 -8 -8 -7 -7 ------------ Run | Scr Mat Min Mat Min Exi Min Mat Fac Low Used RIF Installer . | . . . . . . . . . . Robots Hacked 11 | . . . 3 . 8 . . . . Non-combat 6 | . . . 3 . 3 . . . . Combat 5 | . . . . . 5 . . . . Robot Hacks Applied 11 | . . . 3 . 8 . . . . parse_system 11 | . . . 3 . 8 . . . . Relay Couplers Released . | . . . . . . . . . . Fabnet Peak Effective % . | . . . . . . . . . . Robots Rewired 1 | . . . . . . . . 1 . Allies Hacked 1 | . . . . . . . . 1 . Hacks Repelled . | . . . . . . . . . . Allies | -11 -10 -10 -9 -9 -9 -8 -8 -7 -7 -------- Run | Scr Mat Min Mat Min Exi Min Mat Fac Low Total Allies 3 | . . 2 . . . . . 1 . Largest Group 2 | . . 2 2 . . . . 1 . Highest-Rated Group 38 | . . 38 38 . . . . 21 . Highest-Rated Ally 31 | . . 31 31 . . . . 21 . Total Orders . | . . . . . . . . . . Ally Attacks 20 | . . . 14 . . . . 6 . Total Damage 227 | . . . 173 . . . . 54 . Kills 3 | . . . 2 . . . . 1 . Allies Corrupted . | . . . . . . . . . . Allies Melted . | . . . . . . . . . . Intel | -11 -10 -10 -9 -9 -9 -8 -8 -7 -7 ------- Run | Scr Mat Min Mat Min Exi Min Mat Fac Low Robot Analysis Total . | . . . . . . . . . . Derelict Logs Recovered 2 | . . 1 . 1 . . . . . Drone Launches . | . . . . . . . . . . Drone Recoveries . | . . . . . . . . . . Exploration | -11 -10 -10 -9 -9 -9 -8 -8 -7 -7 ------------- Run | Scr Mat Min Mat Min Exi Min Mat Fac Low Turns Passed 6051 | 58 86 325 649 84 656 1611 1544 1029 9 Spaces Moved 2923 | 40 59 182 239 62 535 723 323 744 16 Core 130 | 5 . . 5 . . . . 104 16 Treads 70 | . . . 70 . . . . . . Legs 403 | 35 59 182 111 . . . . 16 . Wheels 2320 | . . . 53 62 535 723 323 624 . Hover . | . . . . . . . . . . Flight . | . . . . . . . . . . Fastest Speed 50 | 50 120 120 115 130 115 100 115 50 50 Average Speed 120 | 120 120 151 177 130 118 100 115 117 50 Slowest Speed 550 | 150 120 190 550 130 130 115 115 130 50 Overloaded Moves . | . . . . . . . . . . Propulsion Burnouts . | . . . . . . . . . . Robots Hopped . | . . . . . . . . . . Cave-ins Triggered . | . . . . . . . . . . Exploration Rate (%) 34 | 3 17 42 26 20 90 101 25 15 5 Regions Visited 9 Branch Regions 5 Pre-discovered Areas . | . . . . . . . . . . Known Exits Taken 1 | . . . . . . . . 1 . Unknown Exits Taken 8 | 1 1 1 1 1 1 1 1 . . Scrap Searched 3 | . . 1 . . . 2 . . . Spaces Dug 12 | . . . . . . . . 12 . Terrain Destroyed 167 | . . 47 53 . . 12 . 55 . Melee . | . . . . . . . . . . Projectile 28 | . . . 28 . . . . . . AOE 139 | . . 47 25 . . 12 . 55 . Terrain Rammed . | . . . . . . . . . . Walls Destroyed . | . . . . . . . . . . Machines Disabled . | . . . . . . . . . . Actions | -11 -10 -10 -9 -9 -9 -8 -8 -7 -7 --------- Run | Scr Mat Min Mat Min Exi Min Mat Fac Low Total 5278 | 47 70 206 370 64 549 1607 1494 855 16 Wait 2093 | . . . 36 . . 870 1157 30 . Move 2914 | 39 58 181 238 61 534 722 322 743 16 Hop . | . . . . . . . . . . Pick Up 23 | 2 3 1 5 1 1 1 4 5 . Fast Attach 24 | 6 1 2 9 . . 1 2 3 . Attach 12 | . . . 1 . . 2 2 7 . Detach 5 | . 1 . 1 . . . 2 1 . Swap 32 | . . 3 17 2 3 2 1 4 . Drop 27 | . 3 . 10 . 1 4 2 7 . Fire 93 | . 3 18 45 . . 3 1 23 . Melee 16 | . . . 4 . 10 . 1 1 . Ram 6 | . . . 3 . . 2 . 1 . Kick 2 | . 1 1 . . . . . . . Crush 1 | . . . 1 . . . . . . Escape Stasis 24 | . . . . . . . . 24 . Rewire 6 | . . . . . . . . 6 . Trap . | . . . . . . . . . . Miscellaneous . | . . . . . . . . . . Route ------- -11/Scrapyard -10/Materials -10/Mines -9/Materials (discovered 2 exits: [*Min] / [*Sto]) -9/Mines -9/Exiles (discovered 2 exits: [*Min x2]) -8/Mines (discovered 2 exits: *Mat x2) -8/Materials -7/Factory (discovered 2 exits: *Fac / *Low) -7/Lower Caves History --------- Turn | Location | Event 12 | -11/Scrapyard | Discovered new exit (range 15) 59 | -11/Scrapyard | Entered Materials 127 | -10/Materials | Discovered new exit (range 6) 145 | -10/Materials | Entered Mines 207 | -10/Mines | Learned Materials security intel 234 | -10/Mines | Received a Rocket Launcher from a helpful Derelict 330 | -10/Mines | Build established: Mutant 347 | -10/Mines | Discovered new exit (range 14) 470 | -10/Mines | Entered Materials 470 | -9/Materials | Accompanied by 2 allies 470 | -9/Materials | Evolved 2 slots: Utility x2 475 | -9/Materials | Led the pair of lost Derelicts to an unsafe place 612 | -9/Materials | Discovered new exit (range 10) 723 | -9/Materials | Destroyed 8 combat bots 825 | -9/Materials | Repaired Imp. Light Armor Plating 870 | -9/Materials | First assault squad dispatched 1108 | -9/Materials | Discovered new exit (range 7) 1119 | -9/Materials | Entered Mines 1139 | -9/Mines | Found a damaged Exp. Sensor Array with a note attached 1144 | -9/Mines | Found Prototype Device 1145 | -9/Mines | Identified Exp. Sensor Array 1155 | -9/Mines | Learned Materials garrison access intel 1198 | -9/Mines | Deemed a non-threat by the Exiles lab entrance 1198 | -9/Mines | Discovered new exit (range 5) 1203 | -9/Mines | Entered Exiles 1224 | -9/Exiles | Discovered new exit (range 14) 1265 | -9/Exiles | Met 8R-AWN 1287 | -9/Exiles | Met EX-HEX 1322 | -9/Exiles | Met EX-BIN 1340 | -9/Exiles | Aligned with FarCom system 1341 | -9/Exiles | Given EX-Vault access code 1374 | -9/Exiles | Opened EX-Vault 1379 | -9/Exiles | Found Prototype Processor 1380 | -9/Exiles | Identified Modified TNC 1407 | -9/Exiles | Warned to stay clear of 0b10 Research branches 1444 | -9/Exiles | Met EX-DEC 1557 | -9/Exiles | Visited The Gauntlet 1847 | -9/Exiles | Discovered new exit (range 11) 1859 | -9/Exiles | Left Exiles lab with Modified TNC 1859 | -9/Exiles | Entered Mines 1942 | -8/Mines | Discovered new exit (range 5) 2150 | -8/Mines | Build established: Skirmisher 3348 | -8/Mines | Discovered new exit (range 14) 3470 | -8/Mines | Entered Materials 3470 | -8/Materials | Evolved 2 slots: Utility x1, Weapon x1 3471 | -8/Materials | Loaded intel: 1 garrison access location 3707 | -8/Materials | Discovered new exit (range 4) 5014 | -8/Materials | Entered Factory 5014 | -7/Factory | Evolved 2 slots: Propulsion x1, Utility x1 5056 | -7/Factory | Assembled infested ambush trap array 5372 | -7/Factory | Discovered new exit (range 2) 5386 | -7/Factory | Identified exit to Factory 5623 | -7/Factory | Discovered new exit (range 10) 5635 | -7/Factory | Identified exit to Lower Caves 5970 | -7/Factory | Released all parts (4) 5973 | -7/Factory | Core integrity fell below 50% 6000 | -7/Factory | Lost 8 parts (1p1n2u4w) 6043 | -7/Factory | Entered Lower Caves 6043 | -7/Lower Caves | Released all parts (3) 6046 | -7/Lower Caves | Core integrity fell below 20% 6052 | -7/Lower Caves | Destroyed by Y-54 Guardian with Flak Gun Last Messages --------------- 05969_ U-05 Engineer lays Concrete. 05970_ The unstable cave ceiling collapses. 05970_ Released Imp. Signal Interpreter. 05970_ Released Exp. Sensor Array. 05970_ Released Med. Storage Unit. 05970_ Released Target Analyzer. 05971_ The unstable cave ceiling collapses. 05971_ U-05 Engineer builds a Wall. 05972_ Subcomponent Replicator disabled. 05992_ LG6Z>7T/%C0VFP8MGV4LYT=EMTDA H2C 06014_ ALERT: Rogue bot located, Programmers report to Factory Zone 2V. 06030_ Subcomponent Replicator disabled. 06033_ K-01 Serf collects debris. 06037_ K-01 Serf cleans the Subcomponent Replicator. LOCATION=LOWER CAVES GOAL=ESCAPE 06043_ Released Aluminum Leg. 06043_ Released Imp. Ion Engine. 06044_ S-27 Virus destroyed. 06052_ System corrupted: Energy discharge (-40). Map ----- +----------------------------------------------------+ | ?????????????????????????????????????????????? | | ?????????????????????????????????????????????? | | ?????????????????????????????????????????????? | | ?????????????????????????????????????????????? | | ?????????????????????????????????????????????? | | ?????????????????????????????????????????????? | | ?????????????????????????????????????????????? | | ?????????????????????????????????????????????? | | ?????????????????????????????????????????????? | | ?????????????????????????????????????????????? | | ?????????????????????????????????????????????? | | ?????????????????????????????????????????????? | | ?????????????????????????????????????????????? | | ?????????????????????????????????????????????? | | ?????????????????????????????????????????????? | | ?????????????????????????????????????????????? | | ?????????????????????????????????????????????? | | ?????????????????????????????????????????????? | | ?????????????????????????????????????????????? | | ????????????### ?????????????????????????????? | | ???????????? ???????????????????????????? | | ??????????? ??????????????????????????? | | ??????????? ????????????????????????? | | ????????????# Y ######?????????????????? | | ?????????????? #?????????????????? | | ?????????????????????# @ #?????????????????? | | ?????????????????????##### #?????????????????? | | ?????????????????????###?# #?????????????????? | | ?????????????????????# ### #?????????????????? | | ????????????????????## #?????????????????? | | ???????????????????## #?????????????????? | | ?????????????????### ##????????????????? | | ????????????????## ##???????????????? | | ????????????????# #???????????????? | | ??????????####### #???????????????? | | ?????????## % ##???????????????? | | ??????? ## = #????????????????? | | ?????? #????????????????? | | ?????? #????????????????? | | ?????????# ==## #????????????????? | | ?????????# * ### ##????????????????? | | ????????# ####?????????????????? | | ????????# ## #???????????????????? | | ????????## ???## ### #??????????????????? | | ?????????#??????####???####??????????????????? | | ?????????????????????????????????????????????? | | ?????????????????????????????????????????????? | | ?????????????????????????????????????????????? | | ?????????????????????????????????????????????? | | ?????????????????????????????????????????????? | +----------------------------------------------------+ Best States ------------- Heat Dissipation 48 Energy Generation 16 Energy Capacity 290 Matter Stores 300 Matter Capacity 300 Sight Range 16 Robot Scan Range 20 Terrain Scan Density 10 Additional Mass Support 9 Armor Coverage 300 Evasion (%) 55 Target Analysis 5 Recoil Reduction 1 Item Schematics ----------------- None Robot Schematics ------------------ None Fabricated ------------ Nothing Alien Tech Used ----------------- None Achievements -------------- I Spy Challenges ------------ None Game ------ Seed CoilNuclearFlamer Manual? 0 Play Time 00:45:58 Cumulative 8.6 hours Start 2022.04.22 @ 20:54:30 End 2022.04.22 @ 21:41:14 Sessions 1 Manual Loads 0 Difficulty Rogue Special Mode None Game No. 11 Rogue 11 Adventurer 0 Explorer 0 Win Type - Total 0 Types 0/0/0/0/0/0/0/0/0 Lore% 29 Gallery% 21 Achievement% 17 Wizard Run 0 Options --------- ASCII 0 Keyboard 0 Movement Numpad Keybinds 0 Fullscreen 2 Font 24/Smallcaps Map View 76x50 Tactical HUD 1 Map Filters NONE Filters NONE Steam 0 RUN: 3b648d7a-1b23-450c-96f8-69df0491c500